[Event "*** SCC Grand Prix: Titled Tuesday Blitz"]
[Site "Chess.com"]
[Date "2020.06.23"]
[Round "7"]
[White "Isajevsky_Anton"]
[Black "GMTalks_Youtube"]
[Result "0-1"]
[WhiteElo "2515"]
[BlackElo "2677"]
[TimeControl "180+1"]
[EndTime "11:16:48 PDT"]
[Termination "GMTalks_Youtube won by resignation"]

1. c4 {[%clk 0:02:59.8]} 1... e5 {[%clk 0:02:59.6]} 2. g3 {[%clk 0:02:59.7]}
2... Bc5 {[%clk 0:02:59]} 3. Bg2 {[%clk 0:02:59.3]} 3... Nc6 {[%clk 0:02:59.1]}
4. Nc3 {[%clk 0:02:58.7]} 4... a6 {[%clk 0:02:59.4]} 5. d3 {[%clk 0:02:56.4]}
5... d6 {[%clk 0:02:57.9]} 6. Nf3 {[%clk 0:02:53.7]} 6... Ba7 {[%clk 0:02:45.7]}
7. e3 {[%clk 0:02:50.1]} 7... Nge7 {[%clk 0:02:39.9]} 8. b3 {[%clk 0:02:29.2]}
8... O-O {[%clk 0:02:36]} 9. O-O {[%clk 0:02:28.5]} 9... Rb8 {[%clk 0:02:36]}
10. Bb2 {[%clk 0:02:22.9]} 10... b5 {[%clk 0:02:33.6]} 11. Rc1 {[%clk
0:02:16.5]} 11... Bg4 {[%clk 0:02:19.5]} 12. h3 {[%clk 0:02:15.2]} 12... Bd7
{[%clk 0:02:19.9]} 13. Kh2 {[%clk 0:02:13.2]} 13... h6 {[%clk 0:02:11.7]} 14. a3
{[%clk 0:01:30.2]} 14... f5 {[%clk 0:01:47.2]} 15. b4 {[%clk 0:01:28.9]} 15...
f4 {[%clk 0:01:45.5]} 16. e4 {[%clk 0:01:15.1]} 16... Nd4 {[%clk 0:01:39.6]} 17.
Nd5 {[%clk 0:01:06.2]} 17... Nxf3+ {[%clk 0:01:33.9]} 18. Bxf3 {[%clk
0:01:04.3]} 18... Nxd5 {[%clk 0:01:26]} 19. exd5 {[%clk 0:00:55.7]} 19... Qg5
{[%clk 0:01:21.8]} 20. Qe2 {[%clk 0:00:36.7]} 20... Rbc8 {[%clk 0:00:54.5]} 21.
c5 {[%clk 0:00:36.3]} 21... Rce8 {[%clk 0:00:52]} 22. Be4 {[%clk 0:00:21.8]}
22... Bb8 {[%clk 0:00:34.1]} 23. g4 {[%clk 0:00:13.2]} 23... f3 {[%clk
0:00:32.3]} 24. Qe3 {[%clk 0:00:13]} 24... Qh4 {[%clk 0:00:27.3]} 25. c6 {[%clk
0:00:12.8]} 25... Bxg4 {[%clk 0:00:26.8]} 0-1

[Event "*** SCC Grand Prix: Titled Tuesday Blitz"]
[Site "Chess.com"]
[Date "2020.06.23"]
[Round "7"]
[White "KingChess345"]
[Black "baby_leo"]
[Result "1-0"]
[WhiteElo "2175"]
[BlackElo "1958"]
[TimeControl "180+1"]
[EndTime "11:16:48 PDT"]
[Termination "KingChess345 won on time"]

1. d4 {[%clk 0:03:00.9]} 1... Nf6 {[%clk 0:02:59.6]} 2. Nf3 {[%clk 0:03:01.8]}
2... e6 {[%clk 0:02:58.7]} 3. g3 {[%clk 0:03:02.7]} 3... d5 {[%clk 0:02:58.1]}
4. Bg2 {[%clk 0:03:03.6]} 4... Be7 {[%clk 0:02:58.5]} 5. O-O {[%clk 0:03:04.5]}
5... O-O {[%clk 0:02:58.8]} 6. c4 {[%clk 0:03:05]} 6... dxc4 {[%clk 0:02:59.3]}
7. Qc2 {[%clk 0:03:05.4]} 7... a6 {[%clk 0:02:59.8]} 8. Qxc4 {[%clk 0:03:05.6]}
8... b5 {[%clk 0:03:00]} 9. Qc2 {[%clk 0:03:06.3]} 9... Bb7 {[%clk 0:03:00.4]}
10. Bf4 {[%clk 0:03:06.8]} 10... Bd6 {[%clk 0:02:49.6]} 11. Nbd2 {[%clk
0:03:06.3]} 11... Nc6 {[%clk 0:02:43.9]} 12. Nb3 {[%clk 0:03:00.6]} 12... Bxf4
{[%clk 0:02:36.9]} 13. gxf4 {[%clk 0:03:01.5]} 13... Nb4 {[%clk 0:02:34.7]} 14.
Qd2 {[%clk 0:02:56.9]} 14... Nbd5 {[%clk 0:02:15.8]} 15. Na5 {[%clk 0:02:54.2]}
15... Bc8 {[%clk 0:01:57.6]} 16. Ne5 {[%clk 0:02:38.2]} 16... c5 {[%clk
0:01:36.5]} 17. dxc5 {[%clk 0:02:32.7]} 17... Qc7 {[%clk 0:01:23.8]} 18. Rac1
{[%clk 0:02:15.7]} 18... Rd8 {[%clk 0:01:12]} 19. Rfd1 {[%clk 0:02:15.7]} 19...
Bd7 {[%clk 0:00:42.9]} 20. e3 {[%clk 0:02:01]} 20... Rac8 {[%clk 0:00:41.3]} 21.
Qe1 {[%clk 0:01:57.9]} 21... Be8 {[%clk 0:00:38.7]} 22. b4 {[%clk 0:01:55]}
22... Nd7 {[%clk 0:00:30.3]} 23. Nec6 {[%clk 0:01:52.2]} 23... Nb8 {[%clk
0:00:24.3]} 24. Nxd8 {[%clk 0:01:49.8]} 24... Rxd8 {[%clk 0:00:25.2]} 25. a3
{[%clk 0:01:47.6]} 25... Nc6 {[%clk 0:00:24]} 26. Nxc6 {[%clk 0:01:46.9]} 26...
Bxc6 {[%clk 0:00:24.9]} 27. Rd4 {[%clk 0:01:45.6]} 27... Rc8 {[%clk 0:00:24.1]}
28. Rcd1 {[%clk 0:01:45.4]} 28... h6 {[%clk 0:00:23.6]} 29. Qd2 {[%clk 0:01:45]}
29... Kh7 {[%clk 0:00:11.3]} 30. Be4+ {[%clk 0:01:42.4]} 30... Kg8 {[%clk
0:00:11]} 31. Qc2 {[%clk 0:01:36.6]} 31... f5 {[%clk 0:00:10.7]} 32. Bg2 {[%clk
0:01:34.6]} 32... Qf7 {[%clk 0:00:10.3]} 33. Kh1 {[%clk 0:01:24.5]} 33... Qg6
{[%clk 0:00:10]} 34. Rg1 {[%clk 0:01:24.5]} 34... Qh5 {[%clk 0:00:10.2]} 35. Qd1
{[%clk 0:01:23.2]} 35... Qh4 {[%clk 0:00:08.9]} 36. Qe2 {[%clk 0:01:17.5]} 36...
Nc3 {[%clk 0:00:04.6]} 37. Qd3 {[%clk 0:01:11.2]} 37... Ne4 {[%clk 0:00:04.5]}
38. Bxe4 {[%clk 0:01:03.5]} 38... Bxe4+ {[%clk 0:00:03.5]} 39. Rxe4 {[%clk
0:01:03.8]} 39... fxe4 {[%clk 0:00:03.1]} 40. Qxe4 {[%clk 0:01:04.7]} 1-0

[Event "*** SCC Grand Prix: Titled Tuesday Blitz"]
[Site "Chess.com"]
[Date "2020.06.23"]
[Round "7"]
[White "GregShahade"]
[Black "Gajuchess"]
[Result "0-1"]
[WhiteElo "2574"]
[BlackElo "2762"]
[TimeControl "180+1"]
[EndTime "11:16:50 PDT"]
[Termination "Gajuchess won on time"]

1. e4 {[%clk 0:03:00.9]} 1... c5 {[%clk 0:02:59.6]} 2. Nf3 {[%clk 0:03:00.9]}
2... e6 {[%clk 0:03:00.5]} 3. d4 {[%clk 0:03:01]} 3... cxd4 {[%clk 0:03:01.4]}
4. Nxd4 {[%clk 0:03:01.5]} 4... a6 {[%clk 0:03:02.3]} 5. Nc3 {[%clk 0:03:01.5]}
5... Qc7 {[%clk 0:03:02.1]} 6. Bd3 {[%clk 0:03:01.4]} 6... Nf6 {[%clk
0:03:01.4]} 7. O-O {[%clk 0:03:01.6]} 7... d6 {[%clk 0:03:01.8]} 8. a4 {[%clk
0:02:59.6]} 8... Be7 {[%clk 0:03:02.7]} 9. Re1 {[%clk 0:02:56.9]} 9... b6 {[%clk
0:03:01.7]} 10. Qf3 {[%clk 0:02:55.8]} 10... Bb7 {[%clk 0:03:01.5]} 11. Qg3
{[%clk 0:02:52.7]} 11... g6 {[%clk 0:02:46.6]} 12. Bh6 {[%clk 0:02:47.3]} 12...
Nbd7 {[%clk 0:02:44.7]} 13. Rad1 {[%clk 0:02:39.5]} 13... Ne5 {[%clk 0:02:39.7]}
14. Bf1 {[%clk 0:02:26.7]} 14... Nfg4 {[%clk 0:02:36.5]} 15. Bf4 {[%clk
0:02:05.6]} 15... g5 {[%clk 0:02:31]} 16. Bc1 {[%clk 0:02:03.7]} 16... h5 {[%clk
0:02:30.4]} 17. f3 {[%clk 0:01:46.3]} 17... h4 {[%clk 0:02:06.7]} 18. Qh3 {[%clk
0:01:46.4]} 18... Nh6 {[%clk 0:02:03.2]} 19. Nb1 {[%clk 0:00:47.1]} 19... Ng6
{[%clk 0:02:01.3]} 20. Rd3 {[%clk 0:00:19.6]} 20... Bf6 {[%clk 0:01:52.8]} 21.
Nxe6 {[%clk 0:00:12.6]} 21... fxe6 {[%clk 0:01:52.9]} 22. Qxe6+ {[%clk
0:00:13.1]} 22... Qe7 {[%clk 0:01:53.4]} 23. Qb3 {[%clk 0:00:11.2]} 23... Ne5
{[%clk 0:01:35]} 24. Rdd1 {[%clk 0:00:11.4]} 24... Nd7 {[%clk 0:01:35.5]} 25.
Nc3 {[%clk 0:00:10.8]} 25... Nc5 {[%clk 0:01:33.1]} 26. Qxb6 {[%clk 0:00:10.6]}
26... Be5 {[%clk 0:01:30.1]} 27. Nd5 {[%clk 0:00:10.6]} 27... Bxd5 {[%clk
0:01:29.9]} 28. exd5 {[%clk 0:00:10.7]} 28... O-O {[%clk 0:01:27.8]} 29. Qb4
{[%clk 0:00:08.9]} 29... Qf6 {[%clk 0:01:24.7]} 30. Qc4 {[%clk 0:00:07.9]} 30...
a5 {[%clk 0:01:23.3]} 31. b3 {[%clk 0:00:07.8]} 31... Rae8 {[%clk 0:01:11.3]}
32. Rd2 {[%clk 0:00:06.3]} 32... g4 {[%clk 0:01:10.4]} 33. fxg4 {[%clk
0:00:05.3]} 33... Bd4+ {[%clk 0:00:57.2]} 34. Rxd4 {[%clk 0:00:05.5]} 34... Qf2+
{[%clk 0:00:56.2]} 35. Kh1 {[%clk 0:00:05]} 35... Rxe1 {[%clk 0:00:56.1]} 36.
Bxh6 {[%clk 0:00:04.1]} 36... Rxf1+ {[%clk 0:00:55.2]} 0-1

[Event "*** SCC Grand Prix: Titled Tuesday Blitz"]
[Site "Chess.com"]
[Date "2020.06.23"]
[Round "7"]
[White "ShimanovAlex"]
[Black "ValentinDragnev"]
[Result "1-0"]
[WhiteElo "2871"]
[BlackElo "2739"]
[TimeControl "180+1"]
[EndTime "11:16:52 PDT"]
[Termination "ShimanovAlex won by resignation"]

1. d4 {[%clk 0:03:00.8]} 1... Nf6 {[%clk 0:02:59.8]} 2. Bf4 {[%clk 0:02:59.9]}
2... e6 {[%clk 0:02:59.6]} 3. e3 {[%clk 0:02:59.9]} 3... b6 {[%clk 0:03:00.2]}
4. Qf3 {[%clk 0:02:58.8]} 4... d5 {[%clk 0:02:58.1]} 5. Nc3 {[%clk 0:02:58.8]}
5... Bd6 {[%clk 0:02:56.7]} 6. O-O-O {[%clk 0:02:58.2]} 6... a6 {[%clk
0:02:50.5]} 7. Nge2 {[%clk 0:02:56]} 7... Bb7 {[%clk 0:02:50]} 8. g4 {[%clk
0:02:55.7]} 8... b5 {[%clk 0:02:49.4]} 9. g5 {[%clk 0:02:53.5]} 9... Ne4 {[%clk
0:02:49.7]} 10. Nxe4 {[%clk 0:02:53.5]} 10... dxe4 {[%clk 0:02:50.6]} 11. Qg3
{[%clk 0:02:53.9]} 11... Nc6 {[%clk 0:02:47.1]} 12. Bg2 {[%clk 0:02:41.2]} 12...
Ne7 {[%clk 0:02:43.7]} 13. Nc3 {[%clk 0:02:41.2]} 13... Nf5 {[%clk 0:02:12.5]}
14. Qg4 {[%clk 0:02:41.2]} 14... Bxf4 {[%clk 0:02:09]} 15. Qxf4 {[%clk 0:02:41]}
15... O-O {[%clk 0:01:55.8]} 16. Bxe4 {[%clk 0:02:39]} 16... Bxe4 {[%clk
0:01:50.2]} 17. Nxe4 {[%clk 0:02:39]} 17... b4 {[%clk 0:01:49.1]} 18. Rhg1
{[%clk 0:02:36.5]} 18... a5 {[%clk 0:01:47.7]} 19. h4 {[%clk 0:02:23.1]} 19...
a4 {[%clk 0:01:46.9]} 20. h5 {[%clk 0:02:23.2]} 20... b3 {[%clk 0:01:42.8]} 21.
cxb3 {[%clk 0:02:01.6]} 21... axb3 {[%clk 0:01:42.1]} 22. a3 {[%clk 0:02:02.3]}
22... Ra5 {[%clk 0:01:28.9]} 23. h6 {[%clk 0:02:00.8]} 23... g6 {[%clk 0:01:07]}
24. Nf6+ {[%clk 0:01:58.7]} 24... Kh8 {[%clk 0:01:07.1]} 25. d5 {[%clk
0:01:51.5]} 25... exd5 {[%clk 0:00:47.2]} 26. Qe5 {[%clk 0:01:50.3]} 26... Qe7
{[%clk 0:00:40]} 27. Qxe7 {[%clk 0:01:22.1]} 27... Nxe7 {[%clk 0:00:40.9]} 28.
e4 {[%clk 0:01:22.8]} 28... dxe4 {[%clk 0:00:36.3]} 29. Rd7 {[%clk 0:01:20.5]}
29... Rc5+ {[%clk 0:00:34.5]} 30. Kb1 {[%clk 0:01:20.5]} 30... Ng8 {[%clk
0:00:31.1]} 31. Nxe4 {[%clk 0:01:20.6]} 31... Re5 {[%clk 0:00:25]} 32. f3 {[%clk
0:01:15.9]} 32... f6 {[%clk 0:00:24.6]} 33. Rxc7 {[%clk 0:01:12.7]} 33... Rf5
{[%clk 0:00:19.6]} 34. Nd6 {[%clk 0:01:12.2]} 34... fxg5 {[%clk 0:00:15.1]} 35.
Nxf5 {[%clk 0:01:11.5]} 35... Rxf5 {[%clk 0:00:16]} 36. Rc8 {[%clk 0:01:10.1]}
36... Rxf3 {[%clk 0:00:14.9]} 37. Kc1 {[%clk 0:01:09.5]} 37... Rh3 {[%clk
0:00:09]} 38. Rd1 {[%clk 0:01:08.5]} 38... g4 {[%clk 0:00:08.5]} 39. Rdd8 {[%clk
0:01:05.9]} 39... Rxh6 {[%clk 0:00:05.9]} 1-0

[Event "*** SCC Grand Prix: Titled Tuesday Blitz"]
[Site "Chess.com"]
[Date "2020.06.23"]
[Round "7"]
[White "BigAl"]
[Black "goldaxe"]
[Result "1-0"]
[WhiteElo "2467"]
[BlackElo "2303"]
[TimeControl "180+1"]
[EndTime "11:16:53 PDT"]
[Termination "BigAl won on time"]

1. Nf3 {[%clk 0:03:00.9]} 1... Nf6 {[%clk 0:02:59.7]} 2. g3 {[%clk 0:03:00.1]}
2... g6 {[%clk 0:02:59.7]} 3. Bg2 {[%clk 0:03:00.5]} 3... Bg7 {[%clk 0:03:00.3]}
4. O-O {[%clk 0:03:01.1]} 4... O-O {[%clk 0:03:00.7]} 5. d3 {[%clk 0:03:01.7]}
5... c5 {[%clk 0:03:00.1]} 6. e4 {[%clk 0:03:01.7]} 6... Nc6 {[%clk 0:03:00.4]}
7. Re1 {[%clk 0:02:49.4]} 7... d6 {[%clk 0:03:00.2]} 8. h3 {[%clk 0:02:49.3]}
8... Rb8 {[%clk 0:02:58.1]} 9. c3 {[%clk 0:02:49.4]} 9... b5 {[%clk 0:02:57.7]}
10. d4 {[%clk 0:02:47.6]} 10... b4 {[%clk 0:02:52.7]} 11. dxc5 {[%clk
0:02:39.1]} 11... dxc5 {[%clk 0:02:51.7]} 12. Bf4 {[%clk 0:02:39.1]} 12... Qxd1
{[%clk 0:02:34]} 13. Rxd1 {[%clk 0:02:38.7]} 13... Rb6 {[%clk 0:02:20.4]} 14.
Nbd2 {[%clk 0:02:11.2]} 14... bxc3 {[%clk 0:02:19.5]} 15. bxc3 {[%clk
0:02:10.5]} 15... Ba6 {[%clk 0:02:06.6]} 16. Be3 {[%clk 0:01:56.8]} 16... Nd7
{[%clk 0:01:02.8]} 17. Nb3 {[%clk 0:01:55.3]} 17... Rd8 {[%clk 0:00:48.8]} 18.
Nxc5 {[%clk 0:01:47.7]} 18... Nxc5 {[%clk 0:00:48.1]} 19. Bxc5 {[%clk 0:01:46]}
19... Rbb8 {[%clk 0:00:32.3]} 20. Nd4 {[%clk 0:01:40.3]} 20... Nxd4 {[%clk
0:00:22]} 21. cxd4 {[%clk 0:01:37.9]} 21... Rd7 {[%clk 0:00:18]} 22. e5 {[%clk
0:01:32.8]} 22... e6 {[%clk 0:00:12.1]} 23. Rab1 {[%clk 0:01:16.3]} 23... Rxb1
{[%clk 0:00:11.1]} 24. Rxb1 {[%clk 0:01:15.6]} 24... h5 {[%clk 0:00:08.8]} 25.
f4 {[%clk 0:01:14.4]} 25... Bc4 {[%clk 0:00:08.4]} 26. a3 {[%clk 0:01:12.6]}
26... Kh7 {[%clk 0:00:06.1]} 27. Kf2 {[%clk 0:01:11.2]} 27... Bh6 {[%clk
0:00:04.1]} 28. h4 {[%clk 0:01:10]} 28... a6 {[%clk 0:00:04]} 29. Ke3 {[%clk
0:01:09.9]} 29... Bb5 {[%clk 0:00:04.4]} 30. Be4 {[%clk 0:01:06.3]} 30... Kg8
{[%clk 0:00:04.4]} 31. Bd3 {[%clk 0:01:05]} 31... Bxd3 {[%clk 0:00:03.9]} 32.
Kxd3 {[%clk 0:01:05]} 32... Rd8 {[%clk 0:00:03.6]} 33. Rb6 {[%clk 0:01:02.7]}
1-0

[Event "*** SCC Grand Prix: Titled Tuesday Blitz"]
[Site "Chess.com"]
[Date "2020.06.23"]
[Round "7"]
[White "GigaQuparadze"]
[Black "LiemLe"]
[Result "0-1"]
[WhiteElo "2825"]
[BlackElo "3004"]
[TimeControl "180+1"]
[EndTime "11:16:57 PDT"]
[Termination "LiemLe won by resignation"]

1. e4 {[%clk 0:03:00.4]} 1... e5 {[%clk 0:02:59.7]} 2. Nf3 {[%clk 0:02:59.1]}
2... Nc6 {[%clk 0:02:59.9]} 3. Bb5 {[%clk 0:02:58.4]} 3... a6 {[%clk 0:02:58.7]}
4. Ba4 {[%clk 0:02:58]} 4... Nf6 {[%clk 0:02:59.1]} 5. d3 {[%clk 0:02:57.7]}
5... b5 {[%clk 0:02:58.5]} 6. Bb3 {[%clk 0:02:57.6]} 6... Bc5 {[%clk 0:02:59.1]}
7. Nc3 {[%clk 0:02:57.6]} 7... d6 {[%clk 0:02:59]} 8. Nd5 {[%clk 0:02:57]} 8...
h6 {[%clk 0:02:58.7]} 9. c3 {[%clk 0:02:53.3]} 9... Rb8 {[%clk 0:02:53.2]} 10.
O-O {[%clk 0:02:44.4]} 10... O-O {[%clk 0:02:53.3]} 11. d4 {[%clk 0:02:42.9]}
11... Ba7 {[%clk 0:02:49.1]} 12. dxe5 {[%clk 0:02:40.7]} 12... Nxe5 {[%clk
0:02:46.4]} 13. Nxe5 {[%clk 0:02:37.9]} 13... dxe5 {[%clk 0:02:47.3]} 14. Be3
{[%clk 0:02:29.5]} 14... Bxe3 {[%clk 0:02:44]} 15. fxe3 {[%clk 0:02:05.6]} 15...
Nxe4 {[%clk 0:02:40.2]} 16. Qc2 {[%clk 0:02:04.1]} 16... c6 {[%clk 0:01:43.4]}
17. Qxe4 {[%clk 0:02:01]} 17... cxd5 {[%clk 0:01:43.5]} 18. Qxe5 {[%clk
0:01:59]} 18... Bb7 {[%clk 0:01:39]} 19. Rad1 {[%clk 0:01:52.4]} 19... Qb6
{[%clk 0:01:36.1]} 20. Qd4 {[%clk 0:01:48.4]} 20... Qe6 {[%clk 0:01:35.6]} 21.
Rf3 {[%clk 0:01:46.1]} 21... Rbd8 {[%clk 0:01:25.7]} 22. Rg3 {[%clk 0:01:45.5]}
22... g6 {[%clk 0:01:17.7]} 23. Rf1 {[%clk 0:01:24.6]} 23... f5 {[%clk 0:01:17]}
24. Rgf3 {[%clk 0:01:18.3]} 24... Rfe8 {[%clk 0:01:04]} 25. Rd1 {[%clk
0:01:15.7]} 25... Rd7 {[%clk 0:00:57]} 26. h4 {[%clk 0:01:10.8]} 26... h5 {[%clk
0:00:55.2]} 27. Kh2 {[%clk 0:01:09.1]} 27... Qd6+ {[%clk 0:00:53.4]} 28. Qf4
{[%clk 0:01:08.7]} 28... Re4 {[%clk 0:00:46.6]} 29. Qxd6 {[%clk 0:01:00.9]}
29... Rxh4+ {[%clk 0:00:45.8]} 30. Kg1 {[%clk 0:00:56]} 30... Rxd6 {[%clk
0:00:45.6]} 31. Bc2 {[%clk 0:00:55.5]} 31... Kg7 {[%clk 0:00:44.8]} 32. b3
{[%clk 0:00:54.2]} 32... Rc6 {[%clk 0:00:42.7]} 33. Rd3 {[%clk 0:00:40.2]} 33...
b4 {[%clk 0:00:42.4]} 34. c4 {[%clk 0:00:40.2]} 34... Rc7 {[%clk 0:00:42.3]} 35.
cxd5 {[%clk 0:00:28.7]} 35... Rxc2 {[%clk 0:00:41.7]} 36. d6 {[%clk 0:00:29]}
36... Bxf3 {[%clk 0:00:35.3]} 37. gxf3 {[%clk 0:00:28.5]} 37... Rhh2 {[%clk
0:00:34.6]} 38. d7 {[%clk 0:00:26.4]} 38... Rcg2+ {[%clk 0:00:34.6]} 39. Kf1
{[%clk 0:00:26.3]} 39... Rd2 {[%clk 0:00:35.5]} 0-1

[Event "*** SCC Grand Prix: Titled Tuesday Blitz"]
[Site "Chess.com"]
[Date "2020.06.23"]
[Round "7"]
[White "alexrustemov"]
[Black "serhanberat_ozdemir"]
[Result "1-0"]
[WhiteElo "2734"]
[BlackElo "2533"]
[TimeControl "180+1"]
[EndTime "11:16:57 PDT"]
[Termination "alexrustemov won on time"]

1. d4 {[%clk 0:03:00.9]} 1... Nf6 {[%clk 0:03:00.1]} 2. Nf3 {[%clk 0:02:58.8]}
2... g6 {[%clk 0:02:59.9]} 3. c4 {[%clk 0:02:56.4]} 3... Bg7 {[%clk 0:03:00.2]}
4. g3 {[%clk 0:02:57]} 4... O-O {[%clk 0:03:00.3]} 5. Bg2 {[%clk 0:02:57.5]}
5... d6 {[%clk 0:03:01.2]} 6. Nc3 {[%clk 0:02:57]} 6... c6 {[%clk 0:03:02.1]} 7.
O-O {[%clk 0:02:56.3]} 7... Qa5 {[%clk 0:03:02.5]} 8. Qd2 {[%clk 0:02:52.8]}
8... e5 {[%clk 0:02:47.1]} 9. b3 {[%clk 0:02:45.4]} 9... Re8 {[%clk 0:02:39.6]}
10. e3 {[%clk 0:02:39.1]} 10... e4 {[%clk 0:02:22.7]} 11. Nxe4 {[%clk
0:02:38.3]} 11... Qxd2 {[%clk 0:02:19.7]} 12. Nxf6+ {[%clk 0:02:27.8]} 12...
Bxf6 {[%clk 0:02:20.6]} 13. Nxd2 {[%clk 0:02:26.8]} 13... c5 {[%clk 0:02:18.8]}
14. Ne4 {[%clk 0:02:24.8]} 14... Be7 {[%clk 0:02:11.3]} 15. dxc5 {[%clk
0:02:21.6]} 15... dxc5 {[%clk 0:02:12.2]} 16. Bb2 {[%clk 0:02:21.5]} 16... Nc6
{[%clk 0:02:06.2]} 17. Nf6+ {[%clk 0:02:07.1]} 17... Bxf6 {[%clk 0:02:06.3]} 18.
Bxf6 {[%clk 0:02:07.8]} 18... Bg4 {[%clk 0:01:55.5]} 19. h3 {[%clk 0:02:05.4]}
19... Be6 {[%clk 0:01:49.6]} 20. Rfd1 {[%clk 0:01:59.4]} 20... a5 {[%clk
0:01:49.8]} 21. a4 {[%clk 0:01:53.5]} 21... Rac8 {[%clk 0:01:36]} 22. g4 {[%clk
0:01:48.8]} 22... h6 {[%clk 0:01:33.8]} 23. f4 {[%clk 0:01:45.2]} 23... b6
{[%clk 0:01:24.5]} 24. Rd6 {[%clk 0:01:43.3]} 24... Nb4 {[%clk 0:01:22.5]} 25.
Rad1 {[%clk 0:01:41.3]} 25... Nc2 {[%clk 0:01:03.4]} 26. Kf2 {[%clk 0:01:40]}
26... Rb8 {[%clk 0:01:02.3]} 27. e4 {[%clk 0:01:35.1]} 27... Bc8 {[%clk
0:00:54.6]} 28. R1d2 {[%clk 0:01:30.5]} 28... Nb4 {[%clk 0:00:49.8]} 29. e5
{[%clk 0:01:20.9]} 29... Be6 {[%clk 0:00:41]} 30. Be4 {[%clk 0:01:10.1]} 30...
Bc8 {[%clk 0:00:25.1]} 31. Rd8 {[%clk 0:01:07.5]} 31... Ba6 {[%clk 0:00:23.3]}
32. Rxb8 {[%clk 0:00:58.7]} 32... Rxb8 {[%clk 0:00:24.2]} 33. Rd8+ {[%clk
0:00:58.6]} 33... Rxd8 {[%clk 0:00:23.5]} 34. Bxd8 {[%clk 0:00:59.5]} 34... Na2
{[%clk 0:00:13.9]} 35. Bxb6 {[%clk 0:00:58.1]} 35... Nc3 {[%clk 0:00:10.3]} 36.
Bf3 {[%clk 0:00:56.2]} 1-0

[Event "*** SCC Grand Prix: Titled Tuesday Blitz"]
[Site "Chess.com"]
[Date "2020.06.23"]
[Round "7"]
[White "amintabatabaei"]
[Black "David_Paravyan"]
[Result "1-0"]
[WhiteElo "2828"]
[BlackElo "2913"]
[TimeControl "180+1"]
[EndTime "11:16:58 PDT"]
[Termination "amintabatabaei won by resignation"]

1. e4 {[%clk 0:03:00.9]} 1... c5 {[%clk 0:02:56.9]} 2. Nf3 {[%clk 0:03:00.9]}
2... d6 {[%clk 0:02:57.7]} 3. Nc3 {[%clk 0:02:52]} 3... Nf6 {[%clk 0:02:57.3]}
4. d4 {[%clk 0:02:42.7]} 4... cxd4 {[%clk 0:02:58.2]} 5. Nxd4 {[%clk 0:02:43.6]}
5... a6 {[%clk 0:02:58.4]} 6. Be2 {[%clk 0:02:39.5]} 6... e5 {[%clk 0:02:54.1]}
7. Nb3 {[%clk 0:02:39.5]} 7... Be7 {[%clk 0:02:52.3]} 8. Be3 {[%clk 0:02:39.8]}
8... Be6 {[%clk 0:02:51.1]} 9. Qd2 {[%clk 0:02:36.2]} 9... O-O {[%clk
0:02:47.1]} 10. f4 {[%clk 0:02:36.2]} 10... b5 {[%clk 0:02:41.9]} 11. f5 {[%clk
0:02:19.3]} 11... Bc8 {[%clk 0:02:34.4]} 12. a3 {[%clk 0:02:13.5]} 12... Bb7
{[%clk 0:02:30.5]} 13. Bf3 {[%clk 0:02:13.3]} 13... Nbd7 {[%clk 0:02:25.3]} 14.
g4 {[%clk 0:02:13.2]} 14... Rc8 {[%clk 0:01:59.8]} 15. g5 {[%clk 0:02:00.1]}
15... Rxc3 {[%clk 0:01:59.9]} 16. bxc3 {[%clk 0:01:48]} 16... Nxe4 {[%clk
0:01:56.7]} 17. Qg2 {[%clk 0:01:48.1]} 17... d5 {[%clk 0:00:19.1]} 18. f6 {[%clk
0:01:46.5]} 18... Bd6 {[%clk 0:00:19.3]} 19. Bxe4 {[%clk 0:01:46.8]} 19... dxe4
{[%clk 0:00:19.3]} 20. Rd1 {[%clk 0:01:47.5]} 20... Qc7 {[%clk 0:00:18.9]} 21.
O-O {[%clk 0:01:47]} 21... Nb6 {[%clk 0:00:13.1]} 22. fxg7 {[%clk 0:01:38.8]}
22... Kxg7 {[%clk 0:00:13.7]} 23. Rxd6 {[%clk 0:00:50.7]} 23... Qxd6 {[%clk
0:00:13.3]} 24. Bc5 {[%clk 0:00:51.4]} 24... Qc7 {[%clk 0:00:06.5]} 25. Bxf8+
{[%clk 0:00:46.3]} 25... Kxf8 {[%clk 0:00:07.4]} 26. g6 {[%clk 0:00:47]} 26...
hxg6 {[%clk 0:00:05.8]} 27. Qxg6 {[%clk 0:00:47.9]} 27... e3 {[%clk 0:00:03.6]}
28. Qh6+ {[%clk 0:00:44.7]} 28... Ke8 {[%clk 0:00:02.5]} 29. Qh8+ {[%clk
0:00:42.2]} 29... Ke7 {[%clk 0:00:03]} 30. Rxf7+ {[%clk 0:00:40.9]} 30... Kxf7
{[%clk 0:00:03.3]} 31. Qh7+ {[%clk 0:00:41.3]} 31... Ke8 {[%clk 0:00:02.3]} 32.
Qxc7 {[%clk 0:00:42.2]} 1-0

[Event "*** SCC Grand Prix: Titled Tuesday Blitz"]
[Site "Chess.com"]
[Date "2020.06.23"]
[Round "7"]
[White "KubaGepard"]
[Black "Shankovskyi"]
[Result "1-0"]
[WhiteElo "2367"]
[BlackElo "2450"]
[TimeControl "180+1"]
[EndTime "11:16:58 PDT"]
[Termination "KubaGepard won by checkmate"]

1. d4 {[%clk 0:03:00.9]} 1... e6 {[%clk 0:03:00.9]} 2. Nf3 {[%clk 0:03:01.8]}
2... d5 {[%clk 0:03:00.6]} 3. Bf4 {[%clk 0:03:01.2]} 3... c6 {[%clk 0:02:59.6]}
4. e3 {[%clk 0:03:00.8]} 4... f5 {[%clk 0:03:00]} 5. c4 {[%clk 0:03:00.2]} 5...
Nf6 {[%clk 0:03:00.5]} 6. Nc3 {[%clk 0:02:59.4]} 6... Bd6 {[%clk 0:03:00.8]} 7.
Ne5 {[%clk 0:02:50.7]} 7... O-O {[%clk 0:03:00.1]} 8. Be2 {[%clk 0:02:50.2]}
8... Ne4 {[%clk 0:02:58.8]} 9. Qc2 {[%clk 0:02:49.6]} 9... Qe7 {[%clk 0:02:56]}
10. h4 {[%clk 0:02:45.7]} 10... Nd7 {[%clk 0:02:56]} 11. Nd3 {[%clk 0:02:40.8]}
11... dxc4 {[%clk 0:02:43.9]} 12. Bxd6 {[%clk 0:02:40.7]} 12... Nxd6 {[%clk
0:02:17.1]} 13. Nf4 {[%clk 0:02:24.6]} 13... b5 {[%clk 0:02:13.6]} 14. Bf3
{[%clk 0:02:09.2]} 14... Bb7 {[%clk 0:02:12.8]} 15. Nce2 {[%clk 0:02:02.4]}
15... a6 {[%clk 0:02:08.4]} 16. h5 {[%clk 0:02:00]} 16... e5 {[%clk 0:02:03.4]}
17. dxe5 {[%clk 0:01:55.8]} 17... Nxe5 {[%clk 0:02:04.3]} 18. O-O-O {[%clk
0:01:45.4]} 18... b4 {[%clk 0:01:16.3]} 19. Nd4 {[%clk 0:01:39.7]} 19... Nb5
{[%clk 0:01:16.3]} 20. Nxf5 {[%clk 0:01:28]} 20... Qf6 {[%clk 0:00:48.5]} 21.
Be4 {[%clk 0:01:17.5]} 21... Rae8 {[%clk 0:00:42.9]} 22. Rh3 {[%clk 0:01:05.2]}
22... c3 {[%clk 0:00:39.2]} 23. bxc3 {[%clk 0:00:56.8]} 23... Nxc3 {[%clk
0:00:38]} 24. Qb3+ {[%clk 0:00:43.1]} 24... Kh8 {[%clk 0:00:36.7]} 25. Bc2
{[%clk 0:00:41.6]} 25... Nxd1 {[%clk 0:00:36.3]} 26. Nh4 {[%clk 0:00:29.3]}
26... Nxf2 {[%clk 0:00:34.7]} 27. Rh2 {[%clk 0:00:18.5]} 27... Neg4 {[%clk
0:00:34]} 28. Nhg6+ {[%clk 0:00:16.7]} 28... hxg6 {[%clk 0:00:33.5]} 29. Nxg6+
{[%clk 0:00:16.9]} 29... Qxg6 {[%clk 0:00:25.8]} 30. hxg6+ {[%clk 0:00:17.1]}
30... Nxh2 {[%clk 0:00:25.9]} 31. Qc4 {[%clk 0:00:17.2]} 31... Nhg4 {[%clk
0:00:24.3]} 32. Qc5 {[%clk 0:00:16.5]} 32... Re5 {[%clk 0:00:23.6]} 33. Qxf8#
{[%clk 0:00:16.2]} 1-0